bitfinex-derivatives/quotes_SOLF0:USTF0_20250507
["timestamp","ask_amount","ask_price","bid_price","bid_amount"]
[1746609902396,6.7681,147.76,147.74,6.7688]
[1746609902794,6.7681,147.76,147.73,35.1892]
[1746609902992,6.7681,147.76,147.73,28.42]
[1746609903394,6.7681,147.76,147.74,6.7689]
[1746609904497,6.7681,147.76,147.73,35.1891]
[1746609905396,6.7681,147.76,147.74,6.7689]
[1746609905594,6.7677,147.77,147.73,28.42]
[1746609906098,6.7677,147.77,147.74,6.7688]
[1746609908196,6.7677,147.77,147.75,6.7684]
[1746609908496,8.805,147.78,147.75,6.7684]
[1746609909495,8.805,147.78,147.76,6.768]
[1746609909702,6.7673,147.78,147.76,6.768]
[1746609913198,4.57383283,147.77,147.76,6.768]
[1746609916905,4.57383283,147.77,147.75,6.7683]
[1746609917609,4.57383283,147.76,147.75,6.7683]
[1746609926511,4.57383283,147.76,147.73,28.42]
[1746609926918,4.57383283,147.76,147.73,33.03784596]
[1746609927109,4.57383283,147.75,147.74,6.7686]
[1746609931121,11.34233283,147.75,147.73,35.1893]
[1746609931520,4.57383283,147.74,147.73,35.1893]
[1746609934717,11.34273283,147.74,147.73,28.42]
[1746609937524,4.57383283,147.74,147.73,28.42]
[1746609939026,4.57383283,147.74,147.73,35.1894]
[1746609941827,4.57383283,147.74,147.73,28.42]
[1746609942227,11.34273283,147.74,147.73,28.42]
[1746609942528,6.7689,147.74,147.73,28.42]
[1746609942829,11.35048755,147.74,147.73,28.42]
[1746609948431,4.58158755,147.74,147.73,28.42]
[1746609951240,4.58158755,147.74,147.73,35.1894]
[1746609951639,11.35048755,147.74,147.73,28.42]
[1746609952141,4.58158755,147.74,147.73,28.42]
[1746609953039,4.58158755,147.74,147.73,35.1894]
[1746609977767,4.58158755,147.74,147.7,28.4]
[1746609977966,11.28713351,147.74,147.7,28.4]
[1746609978161,11.28713351,147.74,147.7,35.1705]
[1746609978367,4.58158755,147.73,147.7,35.1705]
[1746609978559,11.35148755,147.72,147.7,35.1705]
[1746609978864,4.58158755,147.71,147.7,35.1705]
[1746609983366,11.35188755,147.71,147.7,28.4]
[1746609987675,4.58158755,147.71,147.7,28.4]
[1746609988376,4.58158755,147.71,147.7,35.1708]
[1746609992380,6.7683,147.76,147.74,6.7689]
[1746609992578,4.61784596,147.8,147.74,28.4]
[1746609992779,6.768,147.76,147.74,28.4]
[1746609993178,6.7685,147.75,147.74,28.4]
[1746609994981,6.7685,147.75,147.74,25.1214]
[1746609995281,6.7698,147.73,147.71,28.38]
[1746609995676,6.7698,147.73,147.71,35.15]
[1746609996082,6.7698,147.73,147.71,28.38]
[1746609996582,6.7699,147.72,147.71,28.38]
[1746610002288,6.7696,147.73,147.71,28.38]
[1746610002991,6.7696,147.73,147.71,35.15]
[1746610004492,4.52570335,147.72,147.71,35.15]
[1746610013905,6.7678,147.77,147.75,6.7681]
[1746610016904,6.768,147.76,147.74,11.38654596]
[1746610026514,4.46189739,147.75,147.74,11.38654596]
[1746610031314,11.23039739,147.75,147.72,4.61784596]
[1746610031517,4.46189739,147.74,147.72,4.61784596]
[1746610031818,4.46189739,147.74,147.73,6.7694]
[1746610037314,11.23079739,147.74,147.72,11.38754596]
[1746610037525,4.46189739,147.73,147.71,28.38]
[1746610037720,11.23179739,147.72,147.71,28.38]
[1746610039122,4.46189739,147.72,147.71,35.1503]
[1746610045032,11.23179739,147.72,147.71,35.1503]
[1746610045827,11.23179739,147.72,147.71,28.38]
[1746610046429,4.46189739,147.72,147.71,35.1503]
[1746610046728,4.46189739,147.72,147.67,652.81220629]
[1746610046923,4.46189739,147.72,147.68,28.38]
[1746610047128,4.46189739,147.71,147.7,11.38824596]
[1746610056838,11.23219739,147.71,147.69,6.7711]
[1746610057039,11.23219739,147.71,147.69,11.38894596]
[1746610057239,4.46189739,147.7,147.69,4.61784596]
[1746610058343,11.23269739,147.7,147.69,4.61784596]
[1746610062347,4.46189739,147.7,147.69,4.61784596]
[1746610063536,4.46189739,147.7,147.69,11.38904596]
[1746610077459,4.46189739,147.7,147.69,4.61784596]
[1746610079154,4.46189739,147.7,147.69,11.38904596]
[1746610091369,6.7699,147.72,147.7,6.7707]
[1746610091965,4.46060103,147.71,147.7,6.7707]
[1746610095172,4.46060103,147.71,147.7,35.1307]
[1746610095670,11.23090103,147.71,147.7,28.36]
[1746610106883,4.46060103,147.71,147.7,35.1308]
[1746610107087,4.46060103,147.71,147.7,39.74864596]
[1746610116887,4.2927,147.78,147.73,6.7693]
[1746610117090,4.2927,147.78,147.74,4.61784596]
[1746610117295,6.7682,147.76,147.74,39.72654596]
[1746610118599,6.7682,147.76,147.74,32.95784596]
[1746610119099,6.7685,147.75,147.74,32.95784596]
[1746610119498,6.7685,147.75,147.74,28.34]
[1746610121297,4.61784596,147.76,147.71,32.95784596]
[1746610122001,6.7699,147.72,147.71,32.95784596]
[1746610122898,6.7699,147.72,147.71,28.34]
[1746610125205,6.7708,147.7,147.68,39.72934596]
[1746610126308,6.7705,147.71,147.69,6.7712]
[1746610126515,4.61784596,147.76,147.7,4.61784596]
[1746610126818,28.34,147.77,147.72,4.61784596]
[1746610127009,8.91054596,147.78,147.72,32.95784596]
[1746610127315,6.7683,147.76,147.74,11.38654596]
[1746610127916,6.7683,147.76,147.74,4.61784596]
[1746610128118,6.7685,147.75,147.74,4.61784596]
[1746610129218,11.1630754,147.75,147.74,4.61784596]
[1746610129421,6.769,147.74,147.72,35.1096]
[1746610129614,4.2927,147.78,147.73,4.61784596]
[1746610130316,6.7687,147.75,147.73,11.38694596]
[1746610130618,4.39353465,147.74,147.73,11.38694596]
[1746610132324,4.39353465,147.74,147.73,4.61784596]
[1746610134025,11.16243465,147.74,147.73,4.61784596]
[1746610135223,6.7694,147.73,147.72,28.34]
[1746610135624,11.16293465,147.73,147.72,28.34]
[1746610137826,6.7694,147.73,147.72,28.34]
[1746610138131,11.16212128,147.73,147.72,28.34]
[1746610142126,4.39272128,147.73,147.72,35.1099]
[1746610143549,4.39272128,147.73,147.72,28.34]
[1746610143925,11.16212128,147.73,147.72,28.34]
[1746610144725,4.39272128,147.73,147.72,28.34]
[1746610144926,4.39272128,147.73,147.72,35.1099]
[1746610151728,11.16212128,147.73,147.72,28.34]
[1746610153027,6.7702,147.72,147.7,6.7705]
[1746610153432,4.39272128,147.71,147.7,6.7705]
[1746610154930,4.39272128,147.71,147.69,39.70884596]
[1746610155435,4.39272128,147.7,147.69,39.70884596]
[1746610163337,4.39272128,147.7,147.69,35.091]
[1746610163538,4.39272128,147.7,147.69,39.70884596]
[1746610179145,4.39272128,147.7,147.69,32.93784596]
[1746610180948,4.39272128,147.7,147.69,39.70904596]
[1746610181249,4.39272128,147.7,147.69,32.93784596]
[1746610184051,4.39272128,147.7,147.69,39.70904596]
[1746610185952,4.39272128,147.7,147.69,32.93784596]
[1746610187955,4.39272128,147.7,147.69,39.70904596]
[1746610191858,4.39272128,147.7,147.69,35.0912]
[1746610192060,4.39272128,147.7,147.69,39.70904596]
[1746610194159,6.7701,147.72,147.7,6.7706]
[1746610194861,4.40719378,147.71,147.7,6.7706]
[1746610199368,11.17779378,147.71,147.69,35.091]
[1746610199568,11.17779378,147.71,147.69,39.70884596]
[1746610199769,4.40719378,147.7,147.69,39.70884596]
[1746610214478,4.61784596,147.76,147.71,6.7701]
[1746610214682,6.7693,147.74,147.71,11.38794596]
[1746610215881,6.7693,147.74,147.72,6.7698]
[1746610220778,6.7694,147.73,147.72,6.7698]
[1746610222684,6.7694,147.73,147.71,11.38794596]
[1746610225480,28.3,147.77,147.72,6.7699]
[1746610226189,6.7689,147.75,147.72,6.7699]
[1746610226502,28.3,147.77,147.72,6.7699]
[1746610226691,4.55302626,147.76,147.72,6.7699]
[1746610226877,6.7692,147.74,147.72,6.7699]
[1746610227082,4.55302626,147.76,147.72,6.7699]
[1746610227483,4.55302626,147.75,147.72,6.7699]
[1746610227891,4.55302626,147.74,147.72,6.7699]
[1746610228614,4.55302626,147.73,147.72,6.7699]
[1746610228994,11.32242626,147.73,147.72,6.7699]
[1746610229186,11.32242626,147.73,147.71,11.38794596]
[1746610229692,11.32242626,147.73,147.71,39.68794596]
[1746610229888,4.55302626,147.72,147.71,39.68794596]
[1746610237297,4.55302626,147.72,147.71,28.3]
[1746610238496,11.32292626,147.72,147.71,28.3]
[1746610251929,4.55302626,147.72,147.71,28.3]
[1746610253008,4.55302626,147.72,147.71,35.0703]
[1746610264021,4.55302626,147.72,147.71,28.3]
[1746610266025,4.55302626,147.72,147.71,35.0703]
[1746610274629,11.32292626,147.72,147.71,28.3]
[1746610274829,4.55302626,147.72,147.71,28.3]
[1746610276329,11.32292626,147.72,147.71,28.3]
[1746610277229,6.7708,147.7,147.68,28.28]
[1746610277530,4.55302626,147.69,147.68,35.0516]
[1746610278032,4.55302626,147.69,147.68,28.28]
[1746610278622,4.55302626,147.69,147.68,32.89784596]
[1746610279637,4.55302626,147.69,147.68,39.66954596]
[1746610291551,6.7701,147.72,147.69,6.7709]
[1746610291743,6.7701,147.72,147.7,4.61784596]
[1746610294452,6.7701,147.72,147.7,11.38854596]
[1746610303957,4.47645783,147.71,147.7,11.38854596]
[1746610305958,4.47645783,147.71,147.7,39.64854596]
[1746610306657,4.47645783,147.71,147.7,35.0307]
[1746610306855,4.47645783,147.71,147.7,39.64854596]
[1746610309064,2.0642,147.77,147.73,6.7691]
[1746610309258,2.0642,147.77,147.76,4.61784596]
[1746610309463,8.832,147.77,147.75,6.7685]
[1746610309671,8.832,147.77,147.75,4.61784596]
[1746610310266,2.0642,147.77,147.75,11.38604596]
[1746610311065,8.8321,147.77,147.75,4.61784596]
[1746610311281,2.0642,147.77,147.75,4.61784596]
[1746610312964,6.768,147.76,147.75,4.61784596]
[1746610313366,2.0642,147.77,147.75,4.61784596]
[1746610313664,8.8321,147.77,147.75,4.61784596]
[1746610314765,6.768,147.76,147.75,4.61784596]
[1746610315567,6.7677,147.77,147.75,11.38634596]
[1746610315864,2.1556,147.78,147.75,4.61784596]
[1746610316065,2.033,147.8,147.77,4.61784596]
[1746610316463,6.7669,147.79,147.77,11.38524596]
[1746610317579,6.7669,147.79,147.77,6.7674]
[1746610317761,6.7669,147.79,147.78,4.61784596]
[1746610320563,6.68804596,147.81,147.74,28.26]
[1746610320858,6.68804596,147.81,147.75,4.61784596]
[1746610321966,6.768,147.76,147.75,4.61784596]
[1746610327574,6.7678,147.77,147.75,4.61784596]
[1746610327976,6.68804596,147.81,147.75,4.61784596]
[1746610328180,6.768,147.76,147.75,4.61784596]
[1746610331278,6.768,147.76,147.74,35.0289]
[1746610331577,6.768,147.76,147.75,4.61784596]
[1746610333279,6.768,147.76,147.75,11.38634596]
[1746610334499,6.7678,147.77,147.75,11.38634596]
[1746610334977,6.68804596,147.81,147.74,28.26]
[1746610335183,4.61784596,147.79,147.74,28.26]
[1746610335701,6.7685,147.75,147.74,28.26]
[1746610342089,6.7703,147.72,147.71,28.24]
[1746610344134,2.1005,147.78,147.71,28.24]
[1746610344281,1.9798,147.8,147.77,4.61784596]
[1746610344888,6.7669,147.79,147.77,4.61784596]
[1746610345284,1.9798,147.8,147.77,4.61784596]
[1746610345691,8.7463,147.8,147.77,6.7673]
[1746610347207,6.7667,147.79,147.77,6.7673]
[1746610348194,6.7667,147.79,147.76,6.7678]
[1746610349789,6.7676,147.77,147.75,35.0082]
[1746610352091,6.7676,147.77,147.75,28.24]
[1746610356399,6.768,147.76,147.75,28.24]
[1746610361302,6.7692,147.74,147.71,2.0477]
[1746610361503,4.0244,147.79,147.71,28.24]
[1746610362500,20.74683381,147.78,147.71,28.24]
[1746610362995,6.7708,147.7,147.66,25.93327625]
[1746610363201,4.0244,147.79,147.67,36.17122541]
[1746610363202,7.21253381,147.75,147.67,36.17122541]
[1746610363398,28.24,147.76,147.67,36.17122541]
[1746610363399,6.1224,147.74,147.67,28.24]
[1746610363597,6.7701,147.72,147.69,6.7708]
[1746610363800,6.1224,147.74,147.67,28.24]
[1746610364290,6.7717,147.68,147.67,28.24]
[1746610366606,6.7726,147.67,147.64,35.0334]
[1746610368003,6.7719,147.68,147.65,6.7729]
[1746610368224,28.26,147.72,147.64,28.26]
[1746610368506,6.7713,147.69,147.66,6.7724]
[1746610369804,6.7717,147.68,147.66,6.7724]
[1746610370912,6.7717,147.68,147.64,28.26]
[1746610370913,6.7717,147.68,147.65,6.7729]
[1746610371405,6.7722,147.67,147.64,28.26]
[1746610371609,6.7722,147.67,147.64,35.0334]
[1746610372406,28.26,147.72,147.64,35.0334]
[1746610373305,6.7724,147.67,147.64,35.0334]
[1746610373507,6.7724,147.67,147.65,6.773]
[1746610373713,6.1224,147.74,147.65,7.21253381]
[1746610374109,6.1224,147.74,147.68,6.7715]
[1746610374411,6.7707,147.71,147.68,35.0315]
[1746610375313,6.77,147.72,147.69,6.7712]
[1746610376608,6.7703,147.71,147.69,6.7712]
[1746610377208,6.7703,147.71,147.68,35.0315]
[1746610378006,6.7709,147.7,147.68,35.0315]
[1746610378908,6.7709,147.7,147.68,28.26]
[1746610379204,6.7712,147.69,147.68,28.26]
[1746610379808,6.771,147.7,147.68,28.26]
[1746610380728,6.7712,147.69,147.68,28.26]
[1746610384114,6.771,147.7,147.68,28.26]
[1746610384514,6.1224,147.74,147.68,28.26]
[1746610384812,6.7704,147.71,147.68,28.26]
[1746610385415,6.7704,147.71,147.68,35.0314]
[1746610385713,6.7708,147.7,147.68,35.0314]
[1746610385909,6.1224,147.74,147.68,35.0314]
[1746610386111,6.7708,147.7,147.68,35.0314]
[1746610389929,6.7708,147.7,147.68,28.26]
[1746610392122,6.7712,147.69,147.68,28.26]
[1746610392627,6.7712,147.69,147.63,9.35213381]
[1746610392628,6.7722,147.67,147.65,35.0329]
[1746610393226,4.33356549,147.66,147.65,35.0329]
[1746610394630,6.1224,147.74,147.65,28.26]
[1746610394828,6.7703,147.71,147.66,7.21253381]
[1746610395128,2.098,147.74,147.66,7.21253381]
[1746610395321,2.098,147.74,147.66,9.20893381]
[1746610395923,2.098,147.74,147.69,6.7709]
[1746610395924,6.7703,147.72,147.69,6.7709]
[1746610396125,2.098,147.74,147.7,28.3]
[1746610397030,2.098,147.74,147.67,28.3]
[1746610397232,30.398,147.74,147.67,28.3]
[1746610397532,4.2101,147.73,147.67,28.3]
[1746610398034,6.7717,147.68,147.67,28.3]
[1746610399135,6.7715,147.69,147.67,28.3]
[1746610400037,6.7715,147.69,147.67,35.072]
[1746610402339,6.7717,147.68,147.67,28.3]
[1746610408642,6.7731,147.65,147.64,28.3]
[1746610409645,6.7729,147.66,147.64,28.3]
[1746610410348,6.7731,147.65,147.64,28.3]
[1746610427562,6.7748,147.62,147.61,28.26]
[1746610433969,6.775,147.61,147.58,35.036]
[1746610434467,6.7756,147.6,147.58,28.26]
[1746610434765,35.47253381,147.66,147.58,28.26]
[1746610435964,6.7758,147.59,147.58,28.26]
[1746610436364,35.47253381,147.66,147.54,28.26]
[1746610436566,35.47253381,147.66,147.56,6.7772]
[1746610437165,6.7766,147.58,147.55,6.7774]
[1746610438271,6.7768,147.57,147.54,35.0379]
[1746610439063,6.7768,147.57,147.55,6.7776]
[1746610439271,6.7765,147.58,147.55,6.7776]
[1746610439576,4.152,147.63,147.54,28.26]
[1746610439766,6.7764,147.58,147.54,35.0377]
[1746610440069,6.7764,147.58,147.54,28.26]
[1746610440767,6.7764,147.58,147.55,6.7773]
[1746610440968,6.7761,147.59,147.54,28.26]
[1746610441569,6.7752,147.61,147.54,28.26]
[1746610441769,0.23881,147.66,147.58,7.21253381]
[1746610441967,0.23881,147.66,147.62,7.21253381]
[1746610442157,0.23881,147.66,147.65,6.7731]
[1746610442558,6.7706,147.71,147.63,30.3628]
[1746610442762,4.1769,147.77,147.68,7.21253381]
[1746610442962,2.0523,147.77,147.69,28.26]
[1746610443264,2.1246,147.81,147.71,7.21253381]
[1746610443664,2.1246,147.81,147.72,2.1028]
[1746610443864,6.7669,147.79,147.76,6.7678]
[1746610444072,2.1246,147.81,147.73,28.26]
[1746610444371,6.7675,147.78,147.73,28.26]
[1746610445472,6.7678,147.77,147.73,28.26]
[1746610446572,6.7681,147.76,147.73,28.26]
[1746610447976,2.1246,147.81,147.73,28.26]
[1746610448169,9.33713381,147.81,147.73,28.26]
[1746610448976,6.7689,147.74,147.73,28.26]
[1746610469181,6.7711,147.7,147.67,585.4]
[1746610469480,6.7711,147.7,147.68,28.34]
[1746610469882,6.7712,147.69,147.68,28.34]
[1746610473683,4.2872,147.74,147.68,35.1117]
[1746610473888,2.1794,147.74,147.68,35.1117]
[1746610474589,2.1794,147.74,147.68,28.34]
[1746610476087,6.7712,147.69,147.68,28.34]
[1746610486196,6.7709,147.7,147.68,28.34]
[1746610486797,6.7709,147.7,147.68,35.1117]
[1746610488997,6.7705,147.71,147.69,6.7712]
[1746610489199,2.1712,147.77,147.68,28.34]
[1746610489401,9.39270448,147.77,147.68,28.34]
[1746610489600,9.3926283,147.77,147.68,28.34]
[1746610489903,20.75780192,147.76,147.68,28.34]
[1746610490500,6.7712,147.69,147.68,28.34]
[1746610511343,6.771,147.7,147.68,28.34]
[1746610511840,2.0705,147.72,147.68,28.34]
[1746610512138,6.7705,147.71,147.68,28.34]
[1746610512387,6.7705,147.71,147.68,35.1117]
[1746610513928,6.77,147.72,147.69,6.771]
[1746610514212,4.1081,147.76,147.68,28.34]
[1746610515418,6.7701,147.72,147.69,6.7712]
[1746610515917,6.7704,147.71,147.69,6.7712]
[1746610517015,6.7704,147.71,147.68,35.1115]
[1746610517420,6.7709,147.7,147.68,35.1115]
[1746610521826,6.7705,147.71,147.69,6.7712]
[1746610522229,4.1081,147.76,147.68,28.34]
[1746610522426,4.1081,147.76,147.68,35.1113]
[1746610522726,4.1081,147.76,147.68,28.34]
[1746610523228,4.1081,147.76,147.69,6.7712]
[1746610524227,6.7702,147.72,147.69,6.7712]
[1746610524729,4.1081,147.76,147.69,6.7712]
[1746610525331,6.7703,147.71,147.69,6.7712]
[1746610525529,4.1081,147.76,147.69,6.7712]
[1746610527132,6.7703,147.72,147.69,6.7712]
[1746610528531,6.7703,147.71,147.69,6.7712]
[1746610528835,4.1081,147.76,147.69,6.7712]
[1746610529236,6.7704,147.71,147.69,6.7712]
[1746610529537,4.1081,147.76,147.69,6.7712]
[1746610529736,4.62129751,147.73,147.69,6.7712]
[1746610529934,4.62129751,147.73,147.68,35.1115]
[1746610530536,6.7702,147.72,147.68,35.1115]
[1746610530837,4.62129751,147.73,147.68,35.1115]
[1746610531137,6.7708,147.71,147.68,35.1115]
[1746610532337,6.7708,147.7,147.68,35.1115]
[1746610535035,4.62129751,147.73,147.69,6.7712]
[1746610535239,6.7705,147.71,147.69,6.7712]
[1746610537942,6.7705,147.71,147.7,28.26]
[1746610550242,6.79249751,147.77,147.7,28.26]
[1746610550449,4.62129751,147.79,147.73,4.62129751]
[1746610550649,6.7685,147.75,147.74,28.24]
[1746610550847,11.38979751,147.75,147.74,28.24]
[1746610551150,4.62129751,147.75,147.71,28.24]
[1746610551349,6.7699,147.72,147.71,28.24]
[1746610552048,11.33845252,147.72,147.71,28.24]
[1746610556254,11.35119336,147.72,147.71,28.24]
[1746610556978,11.35119336,147.72,147.71,23.16141422]
[1746610559257,4.58129336,147.72,147.68,28.24]
[1746610560057,6.7712,147.69,147.68,28.24]
[1746610560699,11.35249336,147.69,147.68,28.24]
[1746610562260,4.58129336,147.69,147.68,28.24]
[1746610565062,4.58129336,147.69,147.68,35.0117]
[1746610566364,11.35249336,147.69,147.68,28.24]
[1746610567665,4.58129336,147.69,147.68,35.0117]
[1746610572268,11.35249336,147.69,147.68,28.24]
[1746610581968,11.35249336,147.69,147.68,28.24]
[1746610583871,4.58129336,147.69,147.68,28.24]
[1746610584071,4.58129336,147.69,147.68,35.0117]
[1746610589274,4.58129336,147.69,147.68,28.24]
[1746610589674,11.35249336,147.69,147.68,28.24]
[1746610599483,4.58129336,147.69,147.68,28.24]
[1746610600082,11.35249336,147.69,147.68,28.24]
[1746610605085,6.7724,147.67,147.65,4.62129751]
[1746610605285,6.7724,147.67,147.66,28.24]
[1746610605984,11.35369336,147.67,147.66,28.24]
[1746610610990,4.45824177,147.67,147.66,28.24]
[1746610611389,4.45824177,147.67,147.66,35.0126]
[1746610612695,4.0428,147.73,147.68,6.7715]
[1746610612994,4.0428,147.73,147.68,11.39279751]
[1746610613995,6.7701,147.72,147.69,6.7712]
[1746610614195,4.0428,147.73,147.68,4.62129751]
[1746610614694,6.7705,147.71,147.68,11.39259751]
[1746610615094,6.7705,147.71,147.68,4.62129751]
[1746610615993,6.7705,147.71,147.69,6.7712]
[1746610617897,6.7705,147.71,147.69,35.0112]
[1746610619097,6.7705,147.71,147.69,28.24]
[1746610620499,6.7708,147.7,147.69,28.24]
[1746610624605,6.7705,147.71,147.69,28.24]
[1746610624801,4.62129751,147.75,147.7,4.62129751]
[1746610625008,4.39076877,147.74,147.7,4.62129751]
[1746610625307,4.39076877,147.74,147.7,11.39189751]
[1746610625499,4.39076877,147.74,147.69,28.24]
[1746610625701,9.01206628,147.73,147.69,28.24]
[1746610625905,6.7708,147.7,147.69,28.24]
[1746610626100,11.16156877,147.7,147.69,28.24]
[1746610630113,4.39076877,147.7,147.69,28.24]
[1746610631314,11.16156877,147.7,147.69,28.24]
[1746610636432,6.7721,147.67,147.66,28.24]
[1746610636630,11.16286877,147.67,147.66,28.24]
[1746610640638,4.39076877,147.67,147.66,28.24]
[1746610640836,4.39076877,147.67,147.66,32.86129751]
[1746610641337,4.39076877,147.67,147.66,39.63389751]
[1746610653447,11.16286877,147.67,147.66,28.24]
[1746610664751,6.7736,147.64,147.63,28.22]
[1746610665246,11.16436877,147.64,147.63,28.22]
[1746610668454,4.39076877,147.64,147.63,28.22]
[1746610675057,11.16426877,147.64,147.63,28.22]
[1746610678360,4.39076877,147.64,147.63,28.22]
[1746610679859,11.16426877,147.64,147.63,28.22]
[1746610682465,4.39076877,147.64,147.63,34.994]
[1746610683064,4.39076877,147.64,147.63,39.61529751]
[1746610685366,4.39076877,147.64,147.63,34.994]
[1746610685567,4.39076877,147.64,147.63,39.61529751]
[1746610686571,6.7719,147.68,147.66,6.7724]
[1746610686767,6.7719,147.68,147.66,11.39369751]
[1746610686968,6.7719,147.68,147.67,28.22]
[1746610690273,6.7714,147.69,147.67,28.22]
[1746610690571,6.7714,147.69,147.67,34.9921]
[1746610690785,2.1259,147.71,147.67,28.22]
[1746610691076,6.7714,147.69,147.67,28.22]
[1746610691276,6.7714,147.69,147.67,34.9921]
[1746610691573,6.7714,147.69,147.67,28.22]
[1746610693075,6.7717,147.68,147.67,28.22]
[1746610694579,6.7731,147.65,147.64,28.22]
[1746610700176,6.7747,147.62,147.61,28.22]
[1746610700568,4.62129751,147.63,147.58,28.22]
[1746610700769,2.1213,147.62,147.58,28.22]
[1746610702080,6.7759,147.59,147.58,28.22]
[1746610703175,6.7772,147.56,147.55,28.22]
[1746610703378,2.1213,147.62,147.55,28.22]
[1746610703785,6.777,147.57,147.55,28.22]
[1746610705882,6.7762,147.59,147.55,34.9976]
[1746610706182,4.2441,147.62,147.49,585.3]
[1746610706382,4.2441,147.62,147.51,7.23346049]
[1746610706582,6.7765,147.58,147.55,6.7775]
[1746610707486,4.2441,147.62,147.56,6.777]
[1746610707685,4.2441,147.62,147.54,28.22]
[1746610708790,6.7764,147.58,147.55,6.7774]
[1746610710289,6.7764,147.58,147.54,34.9979]
[1746610710587,6.7755,147.6,147.54,28.22]
[1746610710789,4.2441,147.62,147.54,35.45346049]
[1746610711090,6.7751,147.61,147.54,35.45346049]
[1746610711389,6.7751,147.61,147.58,6.776]
[1746610711794,8.8959,147.62,147.54,35.45346049]
[1746610712081,6.7746,147.62,147.54,35.45346049]
[1746610712290,6.7743,147.63,147.57,7.23346049]
[1746610712484,4.2617,147.67,147.58,28.24]
[1746610712985,4.2617,147.67,147.58,30.2093]
[1746610713194,4.2617,147.67,147.58,32.3528]
[1746610713388,6.7735,147.65,147.58,32.3528]
[1746610713586,6.7735,147.65,147.62,6.7742]
[1746610713783,6.7735,147.65,147.62,35.0142]
[1746610715790,6.7728,147.66,147.63,6.774]
[1746610715991,4.2617,147.67,147.63,6.774]
[1746610716289,6.7733,147.65,147.63,6.774]
[1746610716692,6.7733,147.65,147.62,35.0142]
[1746610720693,6.7728,147.66,147.62,28.24]
[1746610720992,2.0231,147.69,147.62,28.24]
[1746610721192,6.7723,147.67,147.64,6.7732]
[1746610721797,6.7723,147.67,147.65,6.773]
[1746610722798,6.7723,147.67,147.64,6.7733]
[1746610724099,6.7726,147.66,147.64,6.7733]
[1746610724397,6.7726,147.66,147.63,6.7738]
[1746610726098,6.7731,147.65,147.63,6.7738]
[1746610726304,6.7731,147.65,147.62,35.0142]
[1746610729002,6.7731,147.65,147.63,6.774]
[1746610732709,6.7728,147.66,147.63,6.774]
[1746610733006,28.22,147.72,147.62,35.47346049]
[1746610733400,6.7721,147.68,147.65,6.7727]
[1746610733599,28.22,147.72,147.65,6.7727]
[1746610733811,28.22,147.72,147.66,28.22]
[1746610734505,6.7721,147.68,147.66,28.22]
[1746610734804,28.22,147.72,147.66,28.22]
[1746610735603,6.7721,147.67,147.66,28.22]
[1746610739007,6.7719,147.68,147.66,28.22]
[1746610739305,28.22,147.72,147.66,28.22]
[1746610739506,6.7721,147.67,147.66,28.22]
[1746610743309,6.7718,147.68,147.66,28.22]
[1746610743608,28.22,147.72,147.66,28.22]
[1746610743804,6.7714,147.69,147.66,34.9924]
[1746610744209,6.3909,147.73,147.66,34.9924]
[1746610744509,6.3909,147.73,147.66,28.22]
[1746610744908,6.7714,147.69,147.66,34.9926]
[1746610745408,6.7704,147.71,147.68,6.7716]
[1746610745605,35.45346049,147.77,147.66,28.22]
[1746610745904,30.2848,147.77,147.66,28.22]
[1746610746105,6.7693,147.74,147.71,6.7703]
[1746610746313,6.7693,147.74,147.71,34.9903]